Cogmind - Beta 13 @@@ ROGUE MODE // 2024.06.24 @ 16:49:47 Player: Lunace Result: Self-destructed Performance ------------- Evolutions (3) 1500 Regions Visited (6) 1200 Robots Destroyed (44) 220 Value Destroyed (1536) 1536 Prototype IDs (5) 100 Alien Tech Used (0) 0 Bonus (24) 24 TOTAL SCORE: 4580 Bonus ------- High Alert Combat Kills 24 Cogmind --------- Core Integrity 550/700 Matter 253/300 Energy 91/100 System Corruption 11% Temperature Cool (9) Movement Walking (120) Location -7/Factory Parts ------- > --- POWER (1) -------- (None) > --- PROPULSION (4) --- Improved Carbon-fiber Leg Improved Carbon-fiber Leg Improved Carbon-fiber Leg Improved Carbon-fiber Leg > --- UTILITY (6) ------ Structural Scanner Improved Sensor Array > --- WEAPON (2) ------- (None) > --- INVENTORY (5) ---- VTOL Module Cesium-ion Thruster Microactuators Precision Rocket Launcher Peak State ------------ > --- POWER ------------ (None) > --- PROPULSION ------- Improved Treads Improved Treads Armored Treads Armored Treads > --- UTILITY ---------- Large Storage Unit Structural Scanner Improved Sensor Array Improved Signal Interpreter Improved Medium Armor Plating Layered Light Armor Plating > --- WEAPON ----------- Phase Cannon Phase Cannon > --- INVENTORY -------- Hover Unit Airjet Cooled Airjet Cesium-ion Thruster Small Storage Unit Microactuators Heavy Particle Gun Heavy Particle Gun Heavy Particle Gun Assault Rifle Heavy Flail Katana [Rating: 39] Favorites ----------- Power Ion Engine Engine Ion Engine Propulsion Improved Treads Treads Improved Treads Leg VSS Leg Hover Unit Cooled Airjet Flight Unit Cesium-ion Thruster Utility Large Storage Unit Device Structural Scanner Storage Large Storage Unit Processor Advanced Terrain Scan Processor Protection Hardened Light Armor Plating Weapon Field Laser Energy Gun Field Laser Energy Cannon Phase Cannon Ballistic Gun Assault Rifle Launcher Heavy Missile Launcher Impact Weapon Heavy Flail Slashing Weapon Katana Build | -11 -10 -9 -8 -7 -7 -7 ------- Run | Yrd Mat Mat Mat Fac Was Fac Slots Evolved 6 | . . 2 2 2 . . Power . | . . . . . . . Propulsion 2 | . . 1 1 . . . Utility 4 | . . 1 1 2 . . Weapon . | . . . . . . . Parts Attached 60 | 7 . 11 12 12 2 16 Power 5 | 1 . 1 1 . . 2 Engine 5 | 1 . 1 1 . . 2 Core . | . . . . . . . Reactor . | . . . . . . . Propulsion 22 | 2 . 3 5 . 2 10 Treads 10 | 2 . 3 5 . . . Leg 10 | . . . . . . 10 Wheel . | . . . . . . . Hover 1 | . . . . . 1 . Flight 1 | . . . . . 1 . Utility 21 | 2 . 5 3 8 . 3 Device 10 | 1 . 3 1 2 . 3 Storage 2 | 1 . 1 . . . . Processor 3 | . . . . 3 . . Hackware . | . . . . . . . Protection 6 | . . 1 2 3 . . Artifact . | . . . . . . . Weapon 12 | 2 . 2 3 4 . 1 Energy Gun 5 | 1 . 2 2 . . . Energy Cannon 2 | . . . . 2 . . Ballistic Gun 1 | 1 . . . . . . Ballistic Cannon . | . . . . . . . Launcher 2 | . . . 1 1 . . Special Weapon . | . . . . . . . Impact Weapon 1 | . . . . 1 . . Slashing Weapon 1 | . . . . . . 1 Piercing Weapon . | . . . . . . . Special Melee Weapon . | . . . . . . . Unidentified Prototypes 2 | . . . 1 . 1 . Parts Lost 12 | . . . 3 4 2 3 Power 3 | . . . 1 1 . 1 Propulsion 1 | . . . . . 1 . Utility 5 | . . . 2 1 1 1 Weapon 3 | . . . . 2 . 1 Highest Loss Streak 4 | . . . 2 4 2 3 To Critical Strikes . | . . . . . . . Average Slot Usage (%) 83 | . 100 97 95 79 42 60 Engine 6 | . 14 11 9 1 . 5 Treads 25 | . 28 32 36 30 9 . Leg 5 | . . . . . . 26 Device 11 | . 14 12 7 7 . 21 Storage 7 | . 14 11 9 7 3 . Processor 1 | . . . . 4 5 . Protection 8 | . . 7 15 10 9 . Energy Gun 9 | . 14 19 14 1 . . Ballistic Gun 1 | . 14 2 . . . . Launcher 2 | . . . 3 6 . . Impact Weapon 1 | . . . . 5 . . Naked Turns . | . . . . . . . Heaviest Build 51 | 15 15 37 48 51 47 15 Greatest Support 92 | 40 40 69 92 86 66 76 Greatest Overweight (x) 2 | . . . . . 2 . Average Overweight (x) . | . . . . . . . Largest Inventory Capacity 15 | 8 8 15 15 15 15 5 Average Capacity 11 | 7 8 8 15 15 9 5 Most Carried 13 | 1 1 9 11 13 13 5 Average Carried 7 | . 1 7 8 11 5 3 Final Capacity 15 | 8 8 15 15 15 5 5 Final Carried 12 | 1 1 9 11 12 5 4 Class Distribution -------------------- 79% | Mutant 16% | Infiltrator-Mutant Dominant Class ---------------- Mutant | -10/Materials Mutant | -9/Materials Mutant | -8/Materials Mutant | -7/Factory Mutant | -7/Waste Infiltrator-Mutant | -7/Factory Resources | -11 -10 -9 -8 -7 -7 -7 ----------- Run | Yrd Mat Mat Mat Fac Was Fac Matter Collected 966 | 285 . 119 165 202 . 195 Remotely . | . . . . . . . Salvage Created 2125 | 83 . 553 848 357 . 284 Parts 111 | 6 . 25 53 13 . 14 Haulers Intercepted 4 | . . . 4 . . . Recyclers Shooed 1 | 1 . . . . . . Parts Field Recycled . | . . . . . . . Retrieved Matter . | . . . . . . . Parts Self-Destructed . | . . . . . . . Prevented . | . . . . . . . Kills | -11 -10 -9 -8 -7 -7 -7 ------- Run | Yrd Mat Mat Mat Fac Was Fac Combat Hostiles Destroyed 31 | . . 10 11 5 . 5 Melee 6 | . . . . 1 . 5 Guns 14 | . . 9 5 . . . AOE 7 | . . . 5 2 . . Classes Destroyed 13 | 1 . 4 5 2 . 1 Worker 1 | . . . 1 . . . Builder 1 | . . . 1 . . . Tunneler 3 | 3 . . . . . . Hauler 4 | . . . 4 . . . Recycler 2 | . . 1 . . . 1 Operator 2 | . . . 1 1 . . Swarmer 1 | . . . . . . 1 Grunt 15 | . . 6 4 2 . 3 Brawler 1 | . . 1 . . . . Duelist 1 | . . . . 1 . . Sentry 9 | . . 3 5 1 . . Hunter 2 | . . . 2 . . . Programmer 2 | . . . . 1 . 1 Best Kill Streak 4 | 3 . 4 3 3 . 4 Combat Bots Only 3 | . . 3 2 3 . 3 Max Kills in Single Turn 2 | 1 . 1 2 2 . 1 Gunslinging . | . . . . . . . Exploded 2 | . . . 2 2 . . Melee 1 | . . . . 1 . 1 Uniques/NPCs Destroyed . | . . . . . . . Combat | -11 -10 -9 -8 -7 -7 -7 -------- Run | Yrd Mat Mat Mat Fac Was Fac Hostile Shots Fired 251 | . . 34 100 24 1 92 Missed 91 | . . 9 36 10 . 36 Damage Taken 2907 | . . 352 1162 493 56 844 Core 290 | . . 89 51 14 6 130 Absorbed by Shields . | . . . . . . . Core Remaining (%) 91 | 100 100 77 90 . . . Volleys Fired 87 | 6 . 25 46 8 2 . Largest 2 | 2 . 2 2 1 2 . Hottest 170 | 60 . 126 126 39 170 . Shots Fired 140 | 11 . 50 67 8 4 . Gun 103 | 11 . 50 42 . . . Cannon 4 | . . . . . 4 . Launcher 33 | . . . 25 8 . . Special . | . . . . . . . Kinetic 8 | 5 . 3 . . . . Thermal 93 | . . 47 42 . 4 . Explosive 3 | . . . . 3 . . Electromagnetic 36 | 6 . . 25 5 . . Robot Hit Streak 12 | 5 . 11 8 10 12 . Robot Miss Streak 4 | 2 . 2 4 . 1 . Penetration Max . | . . . . . . . Secondary Targets 2 | . . 2 . . . . Max Gunslinging Chain 1 | . . 1 . . . . Shots Hit Robots 114 | 7 . 38 35 11 3 20 Core Hits 58 | 4 . 14 29 5 . 6 Critical Kills . | . . . . . . . Critical Parts Destroyed 1 | . . . . 1 . . Critical Strikes 9 | . . 2 4 1 . 2 Burn 6 | . . 2 4 . . . Smash 1 | . . . . 1 . . Sever 2 | . . . . . . 2 Melee Attacks 37 | . . . . 8 . 29 Impact 8 | . . . . 8 . . Slashing 29 | . . . . . . 29 Piercing . | . . . . . . . Sneak Attacks 2 | . . . . . . 2 Combat Hostiles . | . . . . . . . Follow-up Attacks . | . . . . . . . Damage Inflicted 3604 | 143 . 677 1259 706 125 694 Guns 1326 | 112 . 677 537 . . . Cannons 125 | . . . . . 125 . Explosions 1240 | 31 . . 722 487 . . Melee 913 | . . . . 219 . 694 Ramming . | . . . . . . . Kinetic 68 | 42 . 26 . . . . Thermal 1344 | 31 . 651 537 . 125 . Explosive 397 | . . . 46 351 . . Electromagnetic 882 | 70 . . 676 136 . . Impact 219 | . . . . 219 . . Slashing 694 | . . . . . . 694 Piercing . | . . . . . . . Highest Corruption 11 | . . . . 1 9 11 Average Corruption 5 | . . . . 1 7 9 Corruption Purged . | . . . . . . . Corruption Blocked . | . . . . . . . Effects 26 | . . . . 4 1 21 Message Errors 9 | . . . . 1 . 8 Matter Fused 6 | . . . . 2 . 4 Heat Flow Errors 4 | . . . . . . 4 Energy Discharges 5 | . . . . 1 1 3 Data Loss (major) 1 | . . . . . . 1 Misdirections 1 | . . . . . . 1 Overload Shots . | . . . . . . . Overflow Damage 239 | . . . . 164 . 75 Projectiles . | . . . . . . . Explosions 52 | . . . . 52 . . Melee 187 | . . . . 112 . 75 Knockbacks 1 | . . . . 1 . . Impact 1 | . . . . 1 . . Kinetic . | . . . . . . . Secondary . | . . . . . . . Self-Inflicted Damage 218 | . . . 112 106 . . Shots 11 | . . . 5 6 . . Rammed . | . . . . . . . Targets Rammed . | . . . . . . . Kicked . | . . . . . . . Crushed . | . . . . . . . Highest Temperature 318 | . . 318 144 24 174 273 Average Temperature 86 | . . 118 46 14 90 112 Received Heat Transfer 765 | . . 117 306 63 . 279 Effects 1 | . . 1 . . . . Energy Bleed 1 | . . 1 . . . . Siege Activations . | . . . . . . . Robots Corrupted 2 | . . . 1 1 . . Combat Hostiles 2 | . . . 1 1 . . Parts Fried 6 | . . . 1 5 . . Impact Corruptions 3 | . . . . 3 . . Robots Melted 1 | . . 1 . . . . Combat Hostiles 1 | . . 1 . . . . Parts Melted 5 | . . 3 2 . . . Heat Transferred 3060 | 100 . 1480 1332 . 148 . Parts Sabotaged . | . . . . . . . Parts Stolen . | . . . . . . . Parts Stripped . | . . . . . . . Power Chain Reactions 4 | 1 . . 3 . . . Alert | -11 -10 -9 -8 -7 -7 -7 ------- Run | Yrd Mat Mat Mat Fac Was Fac Peak Influence 454 | 15 9 221 454 283 61 194 Initial 137 | . 9 3 57 137 61 39 Average 123 | 5 9 90 179 180 54 61 Maximum Alert Level 2 | . . 1 2 1 . . Low Security (%) 79 | 100 100 84 64 68 100 100 Level 1 16 | . . 15 21 31 . . Level 2 3 | . . . 13 . . . Level 3 . | . . . . . . . Level 4 . | . . . . . . . Level 5 . | . . . . . . . High Security . | . . . . . . . Max Security . | . . . . . . . Squads Dispatched 11 | . . 3 2 3 . 3 Investigation 2 | . . 1 . 1 . . Extermination 3 | . . . . 1 . 2 Reinforcement 6 | . . 2 2 1 . 1 Assault . | . . . . . . . Garrison . | . . . . . . . Intercept . | . . . . . . . Searches Triggered . | . . . . . . . Construction Impeded 1 | . . . . 1 . . Haulers Reinforced . | . . . . . . . Active Scanning Responses . | . . . . . . . Cargo Convoy Interrupts . | . . . . . . . Stealth | -11 -10 -9 -8 -7 -7 -7 --------- Run | Yrd Mat Mat Mat Fac Was Fac Distress Signals 3 | . . 1 1 . . 1 Communications Jammed . | . . . . . . . Distress Signals . | . . . . . . . Times Spotted 67 | . . 11 21 7 6 22 Peak Tracking Total 7 | . . 3 3 4 6 7 Tactical Retreats 8 | . . . 3 . . 5 Traps | -11 -10 -9 -8 -7 -7 -7 ------- Run | Yrd Mat Mat Mat Fac Was Fac Traps Triggered 6 | . . 1 1 3 . 1 Indirectly . | . . . . . . . Trap Hack Attempts . | . . . . . . . Triggered . | . . . . . . . Disarmed . | . . . . . . . Reprogrammed . | . . . . . . . Reused . | . . . . . . . Traps Extracted . | . . . . . . . Installed . | . . . . . . . Triggered . | . . . . . . . Machines | -11 -10 -9 -8 -7 -7 -7 ---------- Run | Yrd Mat Mat Mat Fac Was Fac Machines Disabled 7 | . . . 4 3 . . Max in Single Turn 2 | . . . 2 2 . . Machines Repaired . | . . . . . . . Machines Dismantled . | . . . . . . . Machines Sabotaged . | . . . . . . . Overloaded Fab Kills . | . . . . . . . Hacking | -11 -10 -9 -8 -7 -7 -7 --------- Run | Yrd Mat Mat Mat Fac Was Fac Machines Accessed 20 | . 1 5 3 6 . 5 Terminals 9 | . . 3 3 2 . 1 Fabricators 3 | . . . . 2 . 1 Repair Stations . | . . . . . . . Recycling Units 6 | . 1 2 . 2 . 1 Scanalyzers 1 | . . . . . . 1 Garrison Access 1 | . . . . . . 1 Total Hacks 37 | . 2 10 5 10 . 10 Successful 11 | . 1 2 2 4 . 2 Failed 26 | . 1 8 3 6 . 8 Catastrophic 8 | . 1 2 2 . . 3 Database Lockouts . | . . . . . . . Manual 3 | . . . 1 1 . 1 Terminals 15 | . . 6 5 3 . 1 Fabricators 6 | . . . . 3 . 3 Repair Stations . | . . . . . . . Recycling Units 12 | . 2 4 . 4 . 2 Scanalyzers 1 | . . . . . . 1 Garrison Access 3 | . . . . . . 3 Terminal Hacks 4 | . . 2 2 . . . Robot Analysis 1 | . . . 1 . . . Prototype ID Bank 1 | . . . 1 . . . Locate Traps 1 | . . 1 . . . . Recall Investigation 1 | . . 1 . . . . Fabricator Hacks 3 | . . . . 2 . 1 Network Status 2 | . . . . 1 . 1 Build 1 | . . . . 1 . . Repair Station Hacks . | . . . . . . . Recycling Unit Hacks 2 | . 1 . . 1 . . Retrieve Components 2 | . 1 . . 1 . . Scanalyzer 1 | . . . . . . 1 Insert Component 1 | . . . . . . 1 Garrison Access Hacks . | . . . . . . . Unauthorized Hacks 1 | . . . . 1 . . Terminals . | . . . . . . . Fabricators 1 | . . . . 1 . . Haulers 1 | . . . . 1 . . Repair Stations . | . . . . . . . Recycling Units . | . . . . . . . Scanalyzers . | . . . . . . . Garrison Access . | . . . . . . . Data Cores Recovered 1 | . . . . 1 . . Used . | . . . . . . . Hacking Detections 17 | . 1 5 3 5 . 3 Full Trace Events 1 | . . . . 1 . . Feedback Events . | . . . . . . . Feedback Blocked . | . . . . . . . Robot Schematics Acquired . | . . . . . . . Robots Built . | . . . . . . . Authchips . | . . . . . . . Time . | . . . . . . . Total Robot Build Rating . | . . . . . . . Part Schematics Acquired . | . . . . . . . Parts Built 2 | . . . . 2 . . Authchips . | . . . . . . . Time 31 | . . . . 31 . . Total Part Build Rating 10 | . . . . 10 . . Parts Repaired . | . . . . . . . Time . | . . . . . . . Parts Recycled . | . . . . . . . Recycled Matter . | . . . . . . . Retrieved Matter . | . . . . . . . Retrieved Components 6 | . 3 . . 3 . . Parts Scanalyzed . | . . . . . . . Part Schematics Acquired . | . . . . . . . Parts Damaged . | . . . . . . . Bothacking | -11 -10 -9 -8 -7 -7 -7 ------------ Run | Yrd Mat Mat Mat Fac Was Fac Used RIF Installer . | . . . . . . . Robots Hacked . | . . . . . . . Non-combat . | . . . . . . . Combat . | . . . . . . . Robot Hacks Applied . | . . . . . . . Relay Couplers Released . | . . . . . . . Fabnet Peak Effective % . | . . . . . . . Robots Rewired . | . . . . . . . Allies Hacked . | . . . . . . . Hacks Repelled . | . . . . . . . Allies | -11 -10 -9 -8 -7 -7 -7 -------- Run | Yrd Mat Mat Mat Fac Was Fac Total Allies . | . . . . . . . Largest Group . | . . . . . . . Highest-Rated Group . | . . . . . . . Highest-Rated Ally . | . . . . . . . Total Orders . | . . . . . . . Ally Attacks . | . . . . . . . Total Damage . | . . . . . . . Kills . | . . . . . . . Allies Corrupted . | . . . . . . . Allies Melted . | . . . . . . . Intel | -11 -10 -9 -8 -7 -7 -7 ------- Run | Yrd Mat Mat Mat Fac Was Fac Robot Analysis Total 1 | . . . 1 . . . Derelict Logs Recovered . | . . . . . . . Drone Launches . | . . . . . . . Drone Recoveries . | . . . . . . . Exploration | -11 -10 -9 -8 -7 -7 -7 ------------- Run | Yrd Mat Mat Mat Fac Was Fac Turns Passed 2937 | 113 143 549 823 697 70 542 Spaces Moved 1704 | 50 90 249 394 354 92 475 Core 3 | 2 . . . . . 1 Treads 1138 | 48 90 249 394 354 3 . Legs 328 | . . . . . . 328 Wheels . | . . . . . . . Hover 5 | . . . . . 5 . Flight 230 | . . . . . 84 146 Fastest Speed 35 | 50 160 160 160 160 35 35 Average Speed 134 | 155 160 160 161 164 43 86 Slowest Speed 170 | 160 160 160 165 165 170 130 Overloaded Moves . | . . . . . . . Propulsion Burnouts . | . . . . . . . Robots Hopped 2 | . . . . . . 2 Cave-ins Triggered . | . . . . . . . Exploration Rate (%) 28 | 4 22 30 44 14 72 15 Regions Visited 6 Branch Regions . Pre-discovered Areas . | . . . . . . . Known Exits Taken . | . . . . . . . Unknown Exits Taken 4 | 1 1 1 1 . . . Scrap Searched . | . . . . . . . Spaces Dug 4 | . . . . 3 . 1 Terrain Destroyed 48 | 7 . . 11 29 . 1 Melee 4 | . . . . 3 . 1 Projectile . | . . . . . . . AOE 44 | 7 . . 11 26 . . Terrain Rammed . | . . . . . . . Walls Destroyed . | . . . . . . . Machines Disabled . | . . . . . . . Actions | -11 -10 -9 -8 -7 -7 -7 --------- Run | Yrd Mat Mat Mat Fac Was Fac Total 2152 | 71 89 350 513 447 126 556 Wait 201 | 8 . 51 44 56 13 29 Move 1695 | 49 89 248 393 354 91 471 Hop 2 | . . . . . . 2 Pick Up 23 | 1 . 7 8 5 1 1 Fast Attach 32 | 7 . 5 3 7 . 10 Attach 13 | . . . 3 5 2 3 Detach 6 | . . 1 1 1 2 1 Swap 15 | . . 6 6 . . 3 Drop 41 | . . 7 9 3 15 7 Fire 87 | 6 . 25 46 8 2 . Melee 37 | . . . . 8 . 29 Ram . | . . . . . . . Kick . | . . . . . . . Crush . | . . . . . . . Escape Stasis . | . . . . . . . Rewire . | . . . . . . . Trap . | . . . . . . . Miscellaneous . | . . . . . . . Route ------- -11/Scrapyard -10/Materials -9/Materials -8/Materials -7/Factory -7/Waste -7/Factory History --------- Turn | Location | Event 2 | -11/Scrapyard | Met Revision 17 41 | -11/Scrapyard | Discovered new exit (range 15) 114 | -11/Scrapyard | Entered Materials 198 | -10/Materials | Discovered new exit (range 16) 257 | -10/Materials | Entered another Materials area 257 | -9/Materials | Evolved 2 slots: Propulsion x1, Utility x1 310 | -9/Materials | Build established: Mutant 784 | -9/Materials | Discovered new exit (range 11) 806 | -9/Materials | Entered another Materials area 806 | -8/Materials | Evolved 2 slots: Propulsion x1, Utility x1 1604 | -8/Materials | Discovered new exit (range 16) 1629 | -8/Materials | Entered Factory 1629 | -7/Factory | Evolved 2 slots: Utility x2 1845 | -7/Factory | Lost 4 parts (1p1u2w) 2296 | -7/Factory | Fabricated Phase Cannon (x2) 2326 | -7/Factory | Sucked down chute 2326 | -7/Factory | Entered Waste 2334 | -7/Waste | Spotted C-40 Crusher 2336 | -7/Waste | Spotted C-40 Crusher 2341 | -7/Waste | EMP discharged 2346 | -7/Waste | Spotted C-40 Crusher 2346 | -7/Waste | Spotted C-40 Crusher 2369 | -7/Waste | Spotted C-40 Crusher 2371 | -7/Waste | Crushed by Compactor (1 part destroyed, 1 dropped) 2392 | -7/Waste | Discovered new exit (range 12) 2393 | -7/Waste | Spotted C-40 Crusher 2396 | -7/Waste | Entered Factory 2738 | -7/Factory | System corruption reached 10% 2755 | -7/Factory | Build established: Infiltrator-Mutant 2938 | -7/Factory | Self-destructed Last Messages --------------- 02822_ System corrupted: Heat flow error (+251). 02847_ System corrupted: Matter fused (-10). 02869_ Sneak attack on U-05 Engineer. 02869_ Destroyed Wheel. 02880_ System corrupted: Energy discharge (-101). 02896_ ALERT: Rogue bot located, Programmers report to Factory Zone 9P. 02897_ System corrupted: Energy discharge (-95). 02900_ Critical hit (Burn: +37). 02916_ W-25 Informer sends out distress signal. 02919_ S-27 Virus destroyed. 02920_ Acquired 24 matter. 02923_ Acquired VTOL Module. 02927_ System corrupted: Energy discharge (-95). 02928_ Destroyed Lgt. Nuclear Core. 02934_ Imp. Deuterium Engine destroyed. 02936_ Transmission Jammer destroyed. 02936_ Critical hit (Burn: +37). 02938_ Katana destroyed. Map ----- +----------------------------------------------------+ | ????? # #### *! % % ##### ???????? | | ????? # #### ! """ "" ##### ???????? | | ????? # ! """ F" # ?""????? | | ????? # ! = """ " # """ ""?? | | ????? # ! ! "" + | | ?????## # | | ?????## = # ???????? | | ?????######### ##########/##+# ???????? | | ?????######### ## # ???????? | | ????????????## ## # ???????? | | ????????????## ## #+???????? | | ????????????## + """ """ # ???????? | | ????????????## ? ## """ """ # ???????? | | ???????????? # ## """ """ # ???????? | | ???????????? # ######### # ???????? | | ???????????? # # # """ """ # ???????? | | ???????????? # # """ # """ """ # ???????? | | ???????????? # ? """ # """ """ # ???????? | | ???????????? + ? # """ # # ???????? | | ???????????? # ?? # # # ???????? | | ???????????? # ??? # """g ############## ???????? | | ?????????????????? # """ ############## ???????? | | ?????????????????? # """ ##????????????????????? | | ?????????????????? # s ############## ???? | | ?????????????????? # """ s############## ##? | | ?????????????????? # """ @p/ r ##? | | ???????????????????# """ r ############## ##? | | ?????????????????? # ############## ???? ##? | | ???????????????? # # """ ##????????????????? ##? | | ???????????????? /k/ """ ##????????????????????? | | ???????????????? # # """ ##????????????????????? | | ???????????????? # # ##????????????????????? | | ???????????????? # ##########????????????????????? | | ?????????????????? #### """ ????????????????????? | | ?????????????????????????????????????????????????? | | ?????????????????????????????????????????????????? | | ?????????????????????????????????????????????????? | | ?????????????????????????????????????????????????? | | ?????????????????????????????????????????????????? | | ?????????????????????????????????????????????????? | | ?????????????????????????????????????????????????? | | ?????????????????????????????????????????????????? | | ?????????????????????????????????????????????????? | | ?????????????????????????????????????????????????? | | ?????????????????????????????????????????????????? | | ?????????????????????????????????????????????????? | | ?????????????????????????????????????????????????? | | ?????????????????????????????????????????????????? | | ?????????????????????????????????????????????????? | | ?????????????????????????????????????????????????? | +----------------------------------------------------+ Best States ------------- Heat Dissipation 41 Energy Generation 16 Energy Capacity 290 Matter Stores 300 Matter Capacity 300 Sight Range 16 Robot Scan Range 15 Terrain Scan Density 210 Jamming Range 12 Armor Coverage 525 Evasion (%) 63 Recoil Reduction 4 Particle Charging 15 Item Schematics ----------------- None Robot Schematics ------------------ None Fabricated ------------ Phase Cannon | x2 | -7/Factory | Preloaded Alien Tech Used ----------------- None Achievements -------------- None Challenges ------------ None Game ------ Seed WarpBladeMount Manual? 0 Play Time 00:27:18 Cumulative 278.8 hours Start 2024.06.24 @ 16:16:46 End 2024.06.24 @ 16:49:47 Sessions 1 Manual Loads 0 Difficulty Rogue Special Mode None Game No. 267 Rogue 262 Adventurer 5 Explorer 0 Win Type - Total 4 Types 3/0/0/1/0/0/0/0/0 Lore% 67 Gallery% 83 Achievement% 64 Wizard Run 0 Options --------- Layout 2 ASCII 0 Keyboard 0 Movement Mouse Keybinds 0 Fullscreen 1 Font 24/Terminus Map View 50x44 Zoom Use 0% Tactical HUD 1 Map Filters NONE Filters NONE Steam 1 RUN: 24b0b053-a2f1-4364-b9e0-67637ea7e24b